{"text_format":"1","workbook":"xlsx","n_sheets":3,"sheets":["Betygsammanställning","Elevsammanfattning","Betygsättningskriterier"],"not_rendered":{"charts":1,"images":1,"macros":1,"external_links":0,"defined_names":11,"comments":0,"pivot_tables":0},"unopened":[],"bounds":{"document_bytes":16777216,"sheet_cells":100000,"rows_first":2000,"rows_last":500,"rows_between":2000,"halvings":0,"cell_chars":16384,"cell_head_chars":4096},"cells_cut":0,"cells_raw":0,"read":"whole","date_system":"1900"}

{"sheet":"Betygsammanställning","index":0,"n_rows":8,"n_cols":9,"rows_kept":8,"cut":false,"hidden":false,"merged":[]}
[null,"Klassnamn"]
[null,"Lärarens namn",null,null,null,"Datum för uppgift ","2011-01-18","2011-01-25","2011-02-01"]
[null,null,null,null,"Maxpoäng ",{"$f":"SUM(Totaltantaluppgiftspoäng[#Data])","v":90},20,20,50]
[null,"Elevnamn","Prestanda","Årskurs","%","Totala intjänade poäng","Skriftlig kursuppgift 1","Skriftlig kursuppgift 2","Utkast till berättande uppsats"]
[null,"Elev 1",{"$f":"Studentinformation[[#This Row],[Totala intjänade poäng]]","v":90},{"$f":"IFERROR(VLOOKUP(Studentinformation[[#This Row],[%]],Betygtabell[],2,TRUE),\"\")","v":"A+"},{"$f":"IFERROR(Studentinformation[[#This Row],[Totala intjänade poäng]]/Maxpoäng,\"\")","v":1},{"$f":"IFERROR(SUM(Studentinformation[[#This Row],[Skriftlig kursuppgift 1]]:OFFSET(F5,,COUNTA(Totaltantaluppgiftspoäng[]))),\"\")","v":90},20,20,50]
[null,"Elev 2",{"$f":"Studentinformation[[#This Row],[Totala intjänade poäng]]","v":60},{"$f":"IFERROR(VLOOKUP(Studentinformation[[#This Row],[%]],Betygtabell[],2,TRUE),\"\")","v":"D"},{"$f":"IFERROR(Studentinformation[[#This Row],[Totala intjänade poäng]]/Maxpoäng,\"\")","v":0.66666666666666663},{"$f":"IFERROR(SUM(Studentinformation[[#This Row],[Skriftlig kursuppgift 1]]:OFFSET(F6,,COUNTA(Totaltantaluppgiftspoäng[]))),\"\")","v":60},10,10,40]
[null,"Elev 3",{"$f":"Studentinformation[[#This Row],[Totala intjänade poäng]]","v":75},{"$f":"IFERROR(VLOOKUP(Studentinformation[[#This Row],[%]],Betygtabell[],2,TRUE),\"\")","v":"B"},{"$f":"IFERROR(Studentinformation[[#This Row],[Totala intjänade poäng]]/Maxpoäng,\"\")","v":0.83333333333333337},{"$f":"IFERROR(SUM(Studentinformation[[#This Row],[Skriftlig kursuppgift 1]]:OFFSET(F7,,COUNTA(Totaltantaluppgiftspoäng[]))),\"\")","v":75},20,15,40]
[null,"Medelbetyg/-poäng",null,{"$f":"IFERROR(VLOOKUP(Studentinformation[[#Totals],[%]],Betygtabell[],2,TRUE),\"\")","v":"B"},{"$f":"SUBTOTAL(101,Studentinformation[%])","v":0.83333333333333337},{"$f":"SUBTOTAL(101,Studentinformation[Totala intjänade poäng])","v":75},{"$f":"SUBTOTAL(101,Studentinformation[Skriftlig kursuppgift 1])","v":16.666666666666668},{"$f":"SUBTOTAL(101,Studentinformation[Skriftlig kursuppgift 2])","v":15},{"$f":"SUBTOTAL(101,Studentinformation[Utkast till berättande uppsats])","v":43.333333333333336}]

{"sheet":"Elevsammanfattning","index":1,"n_rows":51,"n_cols":8,"rows_kept":51,"cut":false,"hidden":false,"merged":[[7,1,7,3],[11,1,11,2],[35,1,44,7],[0,0,0,4]]}
["Din skolas namn"]
[null,{"$f":"Lärarensnamn","v":"Lärarens namn"}]
[null,{"$f":"Klassnamn","v":"Klassnamn"}]
[null,"Framsteg hittills"]
[null,"2011-09-22"]
[]
[null,"Elevnamn:"]
[null,"Elev 3"]
[]
[]
[null,"Elevens nivå",null,"Bokstavsbetyg","Procent","Elevens poäng","Maxpoäng","Medelbetyg"]
[null,{"$f":"IFERROR(_xlfn.RANK.EQ(VLOOKUP(B8,Studentinformation[],5,FALSE),Studentinformation[Totala intjänade poäng]) & \" av \"&COUNTA(Studentinformation[Elevnamn]) & \" Elever\",\"\")","v":"2 av 3 Elever"},null,{"$f":"IFERROR(VLOOKUP(Elevnamn,Studentinformation[],3,FALSE),\"\")","v":"B"},{"$f":"IFERROR(VLOOKUP(Elevnamn,Studentinformation[],4,FALSE),\"\")","v":0.83333333333333337},{"$f":"IFERROR(VLOOKUP(Elevnamn,Studentinformation[],5,FALSE),\"\")","v":75},{"$f":"Maxpoäng","v":90},{"$f":"IFERROR(VLOOKUP(E12,Betygtabell[],3,TRUE),\"\")","v":3}]
[]
[]
[]
[]
[]
[]
[]
[]
[]
[]
[]
[]
[]
[]
[]
[]
[]
[]
[]
[]
[]
[]
[null,"Lärarkommentarer"]
[]
[]
[]
[]
[]
[]
[]
[]
[]
[]
[]
[]
[null,"Målsmans signatur (om nödvändigt)"]
[]
[]
[null,"X",null,null,null,"Datum:"]

{"sheet":"Betygsättningskriterier","index":2,"n_rows":20,"n_cols":4,"rows_kept":20,"cut":false,"hidden":false,"merged":[[4,1,4,3],[2,1,2,4]]}
[null,"Beräkna bokstavsbetyg"]
[]
[null,"Ange procentintervallen för varje bokstavsbetyg i tabellen nedan om du vill anpassa mallen efter dina egna betygsättningskriterier. "]
[]
[null,"Tabell med betyg och medelbetyg\n(Används för att beräkna elevers betyg på bladet Betygsammanställning)"]
[null,"Poäng","Erhållet bokstavsbetyg","Medelbetyg"]
[null,0,"F",0]
[null,0.6,"D-",0.67]
[null,0.63,"D",1]
[null,0.67,"D+",1.33]
[null,0.7,"C-",1.67]
[null,0.73,"C",2]
[null,0.77,"C+",2.33]
[null,0.8,"B-",2.67]
[null,0.83,"B",3]
[null,0.87,"B+",3.33]
[null,0.9,"A-",3.67]
[null,0.93,"A",4]
[null,0.97,"A+",4]
[null,"Betyg och medelbetyg måste anges i stigande ordning."]